Cogmind - Beta 14 @@@ ROGUE MODE // 2024.12.31 @ 23:04:48 Player: Jirybot Result: Destroyed by Y-45 Defender with Heavy Assault Rifle Performance ------------- Evolutions (1) 500 Regions Visited (2) 400 Robots Destroyed (51) 255 Value Destroyed (922) 922 Prototype IDs (4) 80 Alien Tech Used (0) 0 Bonus (0) 0 TOTAL SCORE: 2157 Bonus ------- None Cogmind --------- Core Integrity 0/400 Matter 300/300 Energy 100/100 System Corruption 0% Temperature Cool (27) Movement Core (250) Ox4 Location -9/Materials Parts ------- > --- POWER (1) -------- (None) > --- PROPULSION (2) --- (None) > --- UTILITY (4) ------ Medium Storage Unit Transport Network Coupler > --- WEAPON (2) ------- Particle Gun > --- INVENTORY (10) --- Ion Engine Airjet Heat Sink Seismic Detector Transport Network Coupler Shield Generator Peak State ------------ > --- POWER ------------ Heavy Ion Engine > --- PROPULSION ------- Airjet Airjet > --- UTILITY ---------- High-capacity Storage Unit Sensor Array Signal Interpreter Transport Network Coupler > --- WEAPON ----------- Field Laser Field Laser > --- INVENTORY -------- Ion Engine Ion Engine Ion Engine Light Treads Wheel Compact Wheel Hover Unit Hover Unit Airjet Airjet Heat Sink Terrain Scanner Seismic Detector Transport Network Coupler Power Shielding Shield Generator Field Laser Field Laser Maul Maul [Rating: 22] Favorites ----------- Power Ion Engine Engine Ion Engine Propulsion Light Treads Treads Light Treads Hover Unit Airjet Utility High-capacity Storage Unit Device Sensor Array Storage High-capacity Storage Unit Processor Transport Network Coupler Protection Power Shielding Weapon Improved Assault Rifle Energy Gun Small Laser Energy Cannon Beam Cannon Ballistic Gun Improved Assault Rifle Impact Weapon Maul Build | -11 -10 -9 ------- Run | Yrd Mat Mat Slots Evolved 2 | . . 2 Power . | . . . Propulsion . | . . . Utility 2 | . . 2 Weapon . | . . . Parts Attached 46 | 6 15 25 Power 3 | 1 1 1 Engine 3 | 1 1 1 Core . | . . . Reactor . | . . . Propulsion 12 | 2 2 8 Treads 8 | 2 2 4 Leg . | . . . Wheel . | . . . Hover 4 | . . 4 Flight . | . . . Utility 11 | 1 4 6 Device 3 | . . 3 Storage 5 | 1 3 1 Processor 2 | . . 2 Hackware . | . . . Protection 1 | . 1 . Artifact . | . . . Weapon 20 | 2 8 10 Energy Gun 10 | 2 . 8 Energy Cannon 2 | . 2 . Ballistic Gun 6 | . 4 2 Ballistic Cannon . | . . . Launcher . | . . . Special Weapon . | . . . Impact Weapon 2 | . 2 . Slashing Weapon . | . . . Piercing Weapon . | . . . Special Melee Weapon . | . . . Unidentified Prototypes 4 | . 1 3 Parts Lost 12 | . 2 10 Power 1 | . . 1 Propulsion 5 | . 1 4 Utility 2 | . . 2 Weapon 4 | . 1 3 Highest Loss Streak 10 | . 1 10 To Critical Strikes . | . . . Average Slot Usage (%) 94 | . 93 96 Engine 12 | . 14 10 Treads 22 | . 26 14 Hover 2 | . . 6 Device 3 | . . 9 Storage 12 | . 14 11 Processor 8 | . . 21 Protection 6 | . 10 . Energy Gun 10 | . 12 7 Energy Cannon 3 | . 6 . Ballistic Gun 9 | . 7 13 Peak Build Rating 22 | 6 12 22 Average Rating 10 | 4 7 15 On Entrance 5 | . 6 10 Naked Turns . | . . . Heaviest Build 55 | 13 52 55 Greatest Support 40 | 40 40 40 Greatest Overweight (x) 6 | 4 2 6 Average Overweight (x) 1 | . 1 1 Largest Inventory Capacity 20 | 8 20 20 Average Capacity 19 | 7 19 18 Most Carried 20 | 4 18 20 Average Carried 10 | 3 7 15 Final Capacity 20 | 8 20 10 Final Carried 16 | 4 16 6 Class Distribution -------------------- 64% | Mutant 32% | Scavenger-Skirmisher Dominant Class ---------------- Mutant | -10/Materials Scavenger-Skirmisher | -9/Materials Resources | -11 -10 -9 ----------- Run | Yrd Mat Mat Matter Collected 861 | 186 216 459 Remotely . | . . . Salvage Created 1770 | . 599 1171 Parts 107 | . 40 67 Haulers Intercepted 5 | . 1 4 Recyclers Shooed 2 | . 1 1 Parts Field Recycled . | . . . Retrieved Matter . | . . . Parts Self-Destructed . | . . . Prevented . | . . . Kills | -11 -10 -9 ------- Run | Yrd Mat Mat Combat Hostiles Destroyed 30 | . 12 18 Guns 28 | . 10 18 AOE 2 | . 2 . Classes Destroyed 9 | . 6 3 Worker 2 | . . 2 Builder 2 | . 2 . Tunneler 1 | . . 1 Hauler 5 | . 1 4 Recycler 5 | . 2 3 Watcher 6 | . 3 3 Swarmer 14 | . 6 8 Grunt 12 | . 6 6 Sentry 4 | . . 4 Best Kill Streak 8 | . 4 8 Combat Bots Only 4 | . 3 4 Max Kills in Single Turn 2 | . 2 1 Gunslinging . | . . . Exploded 1 | . 1 . Melee . | . . . Uniques/NPCs Destroyed . | . . . Combat | -11 -10 -9 -------- Run | Yrd Mat Mat Hostile Shots Fired 254 | . 74 180 Missed 65 | . 21 44 Damage Taken 2107 | . 540 1567 Core 478 | . 77 401 Absorbed by Shields . | . . . Redirected to Shielding 16 | . 16 . Regen/Repaired (Parts) 16 | . . 16 Core Remaining (%) 84 | 100 69 . Volleys Fired 116 | . 51 65 Largest 2 | . 2 2 Hottest 128 | . 120 128 Shots Fired 228 | . 101 127 Gun 224 | . 97 127 Cannon 4 | . 4 . Launcher . | . . . Special . | . . . Kinetic 100 | . 32 68 Thermal 110 | . 51 59 Explosive . | . . . Electromagnetic 18 | . 18 . Robot Hit Streak 20 | . 8 20 Robot Miss Streak 4 | . 4 4 Penetration Max . | . . . Secondary Targets . | . . . Shots Hit Robots 146 | . 64 82 Core Hits 72 | . 30 42 Critical Kills . | . . . Critical Parts Destroyed 1 | . . 1 Critical Strikes 3 | . . 3 Burn 2 | . . 2 Destroy 1 | . . 1 Melee Attacks . | . . . Impact . | . . . Slashing . | . . . Piercing . | . . . Sneak Attacks . | . . . Combat Hostiles . | . . . Follow-up Attacks . | . . . Damage Inflicted 2280 | . 910 1370 Guns 1991 | . 640 1351 Cannons 53 | . 53 . Explosions 210 | . 210 . Melee . | . . . Ramming 26 | . 7 19 Kinetic 927 | . 167 760 Thermal 1163 | . 572 591 Explosive . | . . . Electromagnetic 164 | . 164 . Impact . | . . . Slashing . | . . . Piercing . | . . . Highest Corruption . | . . . Average Corruption . | . . . Corruption Purged . | . . . Corruption Blocked . | . . . Overload Shots . | . . . Overflow Damage . | . . . Projectiles . | . . . Explosions . | . . . Melee . | . . . Knockbacks . | . . . Impact . | . . . Kinetic . | . . . Secondary . | . . . Self-Inflicted Damage . | . . . Shots . | . . . Rammed 5 | . 3 2 Targets Rammed 5 | . 3 2 Kicked . | . . . Crushed . | . . . Highest Temperature 388 | . 192 388 Average Temperature 85 | . 40 123 Received Heat Transfer 639 | . 204 435 Effects 3 | . . 3 Energy Bleed 1 | . . 1 Interference 2 | . . 2 Siege Activations . | . . . Robots Corrupted . | . . . Combat Hostiles . | . . . Parts Fried . | . . . Impact Corruptions . | . . . Robots Melted . | . . . Combat Hostiles . | . . . Parts Melted 6 | . 3 3 Heat Transferred 2554 | . 1111 1443 Parts Sabotaged . | . . . Parts Stolen . | . . . Parts Stripped . | . . . Power Chain Reactions 3 | . 3 . Alert | -11 -10 -9 ------- Run | Yrd Mat Mat Peak Influence 300 | . 166 300 Initial . | . . . Average 75 | . 29 156 Maximum Alert Level 1 | . . 1 Low Security (%) 85 | 100 100 60 Level 1 14 | . . 39 Level 2 . | . . . Level 3 . | . . . Level 4 . | . . . Level 5 . | . . . High Security . | . . . Max Security . | . . . Squads Dispatched 2 | . 1 1 Investigation 1 | . 1 . Extermination . | . . . Reinforcement 1 | . . 1 Assault . | . . . Garrison . | . . . Intercept . | . . . Searches Triggered . | . . . Construction Impeded . | . . . Haulers Reinforced . | . . . Active Scanning Responses . | . . . Cargo Convoy Interrupts . | . . . Stealth | -11 -10 -9 --------- Run | Yrd Mat Mat Distress Signals 4 | . 1 3 Communications Jammed . | . . . Distress Signals . | . . . Times Spotted 56 | . 23 33 Peak Tracking Total 6 | . 5 6 Tactical Retreats 3 | . . 3 Traps | -11 -10 -9 ------- Run | Yrd Mat Mat Traps Triggered . | . . . Indirectly . | . . . Trap Hack Attempts . | . . . Triggered . | . . . Disarmed . | . . . Reprogrammed . | . . . Reused . | . . . Traps Extracted . | . . . Installed . | . . . Triggered . | . . . Machines | -11 -10 -9 ---------- Run | Yrd Mat Mat Machines Disabled . | . . . Max in Single Turn . | . . . Machines Repaired . | . . . Machines Dismantled . | . . . Machines Sabotaged . | . . . Overloaded Fab Kills . | . . . Hacking | -11 -10 -9 --------- Run | Yrd Mat Mat Machines Accessed 13 | . 9 4 Terminals 10 | . 7 3 Fabricators . | . . . Repair Stations 1 | . . 1 Recycling Units 2 | . 2 . Scanalyzers . | . . . Garrison Access . | . . . Total Hacks 40 | . 25 15 Successful 18 | . 10 8 Failed 22 | . 15 7 Catastrophic 7 | . 6 1 Database Lockouts . | . . . Manual 29 | . 20 9 Terminals 29 | . 20 9 Fabricators . | . . . Repair Stations 6 | . . 6 Recycling Units 5 | . 5 . Scanalyzers . | . . . Garrison Access . | . . . Terminal Hacks 3 | . 1 2 Branch Access Points 1 | . . 1 Terminal Index 2 | . 1 1 Fabricator Hacks . | . . . Repair Station Hacks 4 | . . 4 Scan Component 2 | . . 2 Repair 2 | . . 2 Recycling Unit Hacks 4 | . 4 . Report Inventory 2 | . 2 . Retrieve Components 2 | . 2 . Scanalyzer . | . . . Garrison Access Hacks . | . . . Unauthorized Hacks 7 | . 5 2 Terminals 7 | . 5 2 Assimilate 1 | . 1 . Botnet 6 | . 4 2 Fabricators . | . . . Repair Stations . | . . . Recycling Units . | . . . Scanalyzers . | . . . Garrison Access . | . . . Data Cores Recovered . | . . . Used . | . . . Hacking Detections 12 | . 8 4 Full Trace Events 2 | . 1 1 Feedback Events . | . . . Feedback Blocked . | . . . Robot Schematics Acquired . | . . . Robots Built . | . . . Authchips . | . . . Time . | . . . Total Robot Build Rating . | . . . Part Schematics Acquired . | . . . Parts Built . | . . . Authchips . | . . . Time . | . . . Total Part Build Rating . | . . . Parts Repaired 2 | . . 2 Time 52 | . . 52 Parts Recycled . | . . . Recycled Matter . | . . . Retrieved Matter . | . . . Retrieved Components 13 | . 13 . Parts Scanalyzed . | . . . Part Schematics Acquired . | . . . Parts Damaged . | . . . Bothacking | -11 -10 -9 ------------ Run | Yrd Mat Mat Used RIF Installer . | . . . Robots Hacked . | . . . Non-combat . | . . . Combat . | . . . Robot Hacks Applied . | . . . Relay Couplers Released . | . . . Fabnet Peak Effective % . | . . . Robots Rewired . | . . . Allies Hacked . | . . . Hacks Repelled . | . . . Allies | -11 -10 -9 -------- Run | Yrd Mat Mat Total Allies . | . . . Largest Group . | . . . Highest-Rated Group . | . . . Highest-Rated Ally . | . . . Total Orders . | . . . Ally Attacks . | . . . Total Damage . | . . . Kills . | . . . Allies Corrupted . | . . . Allies Melted . | . . . Intel | -11 -10 -9 ------- Run | Yrd Mat Mat Robot Analysis Total . | . . . Derelict Logs Recovered . | . . . Drone Launches . | . . . Drone Recoveries . | . . . Exploration | -11 -10 -9 ------------- Run | Yrd Mat Mat Turns Passed 3221 | 115 1904 1202 Spaces Moved 1149 | 52 695 402 Core 21 | 17 . 4 Treads 988 | 35 695 258 Legs . | . . . Wheels . | . . . Hover 140 | . . 140 Flight . | . . . Fastest Speed 50 | 50 160 116 Average Speed 232 | 169 244 221 Slowest Speed 420 | 250 320 420 Overloaded Moves . | . . . Propulsion Burnouts . | . . . Robots Hopped . | . . . Cave-ins Triggered . | . . . Exploration Rate (%) 48 | 4 94 47 Regions Visited 2 Branch Regions . Pre-discovered Areas . | . . . Known Exits Taken . | . . . Unknown Exits Taken 2 | 1 1 . Scrap Searched . | . . . Spaces Dug . | . . . Terrain Destroyed 19 | . 19 . Melee . | . . . Projectile . | . . . AOE 19 | . 19 . Terrain Rammed . | . . . Walls Destroyed . | . . . Machines Disabled . | . . . Actions | -11 -10 -9 --------- Run | Yrd Mat Mat Total 1474 | 76 808 590 Wait 84 | 15 9 60 Move 1147 | 51 694 402 Hop . | . . . Pick Up 32 | 4 18 10 Fast Attach 24 | 6 7 11 Attach 15 | . 5 10 Detach 8 | . 4 4 Swap 7 | . 3 4 Drop 36 | . 14 22 Fire 116 | . 51 65 Melee . | . . . Ram . | . . . Kick . | . . . Crush 5 | . 3 2 Escape Stasis . | . . . Rewire . | . . . Trap . | . . . Miscellaneous . | . . . Route ------- -11/Scrapyard -10/Materials (discovered 5 exits: *Mat x3 / [*Min x2]) -9/Materials (discovered 2 exits: *Min x2) History --------- Turn | Location | Event 46 | -11/Scrapyard | Discovered new exit (range 15) 116 | -11/Scrapyard | Entered Materials 307 | -10/Materials | Build established: Mutant 588 | -10/Materials | Discovered new exit (range 15) 926 | -10/Materials | Discovered new exit (range 14) 1279 | -10/Materials | Discovered new exit (range 12) 1589 | -10/Materials | Discovered new exit (range 8) 1799 | -10/Materials | Discovered new exit (range 16) 2020 | -10/Materials | Entered another Materials area 2020 | -9/Materials | Evolved 2 slots: Utility x2 2025 | -9/Materials | Discovered new exit (range 15) 2040 | -9/Materials | Repaired Sensor Array 2066 | -9/Materials | Repaired Power Shielding? 2142 | -9/Materials | Identified exit to Mines 2416 | -9/Materials | Build established: Scavenger-Skirmisher 3155 | -9/Materials | Core integrity fell below 50% 3212 | -9/Materials | Core integrity fell below 20% 3222 | -9/Materials | Destroyed by Y-45 Defender with Heavy Assault Rifle Last Messages --------------- 03177_ K-01 Serf collects debris. 03177_ Field Laser destroyed. 03178_ Overheating: System interference. 03178_ Field Laser temporarily disabled. 03178_ Transport Network Coupler temporarily disabled. 03178_ Y-45 Defender heat short circuits Beam Rifle. 03179_ Acquired 2 matter. 03180_ Hover Unit destroyed. 03182_ Hvy. Ion Engine destroyed. 03183_ K-01 Serf collects debris. 03206_ W-16 Scout sends out distress signal. 03209_ Acquired Particle Gun. 03210_ S-10 Pest suffers critical hit (Burn). 03212_ Hover Unit destroyed. 03212_ M-13 Machinist repairs Lgt. Treads. 03216_ A-02 Transporter destroyed. 03216_ Field Laser destroyed. 03219_ Critical hit (Burn: +37). Map ----- +----------------------------------------------------+ | ???????????????????????????+ +??????? | | ???????????????????????????# #??????? | | ???????????????????????????# #??????? | | ???????????????????????????# #??????? | | ???????????????????????????# #??????? | | ????????????????????????#### #??????? | | ????????????????????#???#T"# #??????? | | ??????????? ????????# ### "# ######## | | ???????????# ?[| # | | ???????????# ?!| + # | | ???????????# ???????# # | | ???????????# ????????#######|#####+##+# | | ???????? ??# ??????????????#!#?# # | | ???????? ?#Y##########????# #?# + | | ???????? # ^ #????#=#?# # | | ?????????? + #????# #?# # | | ???????????# #????# #?# # | | ???????????# #????# #?# # | | ???????????# #????#[#?######## | | ???????????#!][!! #????#%#????????? | | ???????????#[%[!! ######%#????????? | | ???????????#![!!! =#????????? | | ???????????# #????????? | | ???????????# #????????? | | ???????????### #####+##### #????????? | | ?????????????#@#?????????# % #????????? | | ?????????????#u#?????????# #????????? | | ?????????????# #?????????# #????????? | | ?????????????# #?????????# #????????? | | ????????????? #?????????# #????????? | | ?????????????###?????????# #????????? | | ?????????????????????????# #????????? | | ?????????????????????????# #????????? | | ?????????????????????????# #????????? | | ?????????????????????????# #????????? | | ?????????????????????????? ????????? | | ?????????????????????????? ?????????? | | ??????????????????????????????????????? | | ??????????????????????????????????????? | | ??????????????????????????????????????? | | ??????????????????????????????????????? | | ??????????????????????????????????????? | | ??????????????????????????????????????? | | ??????????????????????????????????????? | | ??????????????????????????????????????? | | ??????????????????????????????????????? | | ??????????????????????????????????????? | | ??????????????????????????????????????? | | ??????????????????????????????????????? | | ??????????????????????????????????????? | +----------------------------------------------------+ Best States ------------- Heat Dissipation 28 Energy Generation 14 Energy Capacity 280 Matter Stores 300 Matter Capacity 300 Sight Range 16 Robot Scan Range 14 Terrain Scan Density 10 Power Shielding 33 Evasion (%) 40 Recoil Reduction 2 Item Schematics ----------------- None Robot Schematics ------------------ None Fabricated ------------ Nothing Alien Tech Used ----------------- None Achievements -------------- None Challenges ------------ None Game ------ Seed LauncherGuidedCutter Manual? 0 Play Time 00:30:06 Cumulative 17.1 hours Start 2024.12.31 @ 22:34:44 End 2024.12.31 @ 23:04:48 Sessions 1 Manual Loads 0 Difficulty Rogue Special Mode None Game No. 18 Rogue 18 Adventurer 0 Explorer 0 Win Type - Total 0 Types 0/0/0/0/0/0/0/0/0 Lore% 13 Gallery% 16 Achievement% 19 Wizard Run 0 Options --------- Layout 1 ASCII 0 Keyboard 0 Movement Mouse Keybinds 0 Fullscreen 2 Font 24/Smallcaps Map View 50x35 Zoom Use 0% Tactical HUD 1 Map Filters NONE Filters NONE Steam 1 RUN: 61caae66-44cb-4f64-b8e8-24ea58944d5e